bitfinex/quotes_SOLUSD_20241218
["timestamp","ask_amount","ask_price","bid_price","bid_amount"]
[1734557419230,0.89834486,208.75,208.64,6.6309]
[1734557419431,0.898469,208.82,208.64,6.6309]
[1734557420351,26.4771117,208.79,208.71,26.4771117]
[1734557420647,26.4771117,208.8,208.73,26.4771117]
[1734557420849,0.89812064,208.79,208.73,26.4771117]
[1734557421054,26.4771117,208.81,208.74,26.4771117]
[1734557421220,26.4771117,208.84,208.77,26.4771117]
[1734557421539,26.4771117,208.85,208.78,26.4771117]
[1734557421745,26.4771117,208.87,208.8,26.4771117]
[1734557421967,0.89779106,208.86,208.8,26.4771117]
[1734557422248,0.89787394,208.9,208.84,26.4771117]
[1734557422457,0.89763757,208.9,208.84,26.4771117]
[1734557422648,27.37474927,208.9,208.83,26.4771117]
[1734557423021,26.4771117,208.88,208.81,26.4771117]
[1734557423229,0.89779582,208.87,208.81,26.4771117]
[1734557424130,26.4771117,208.84,208.77,26.4771117]
[1734557424354,26.4771117,208.81,208.74,29.5304117]
[1734557424655,0.89811946,208.8,208.71,6.2908]
[1734557424832,23.776884,208.77,208.65,6.5035]
[1734557425033,20.0,208.74,208.65,6.5035]
[1734557425334,0.89845169,208.76,208.69,26.4771117]
[1734557425335,27.37554884,208.76,208.69,26.4771117]
[1734557425538,26.4771117,208.75,208.68,26.4771117]
[1734557426065,27.37537088,208.79,208.72,26.4771117]
[1734557426433,26.4771117,208.81,208.73,26.4771117]
[1734557426636,0.89802007,208.8,208.74,26.4771117]
[1734557426837,26.4771117,208.81,208.74,26.4771117]
[1734557427037,26.4771117,208.8,208.73,26.4771117]
[1734557427573,26.4771117,208.81,208.74,26.4771117]
[1734557427868,27.3751608,208.8,208.73,26.4771117]
[1734557428037,26.4771117,208.75,208.67,26.4771117]
[1734557428238,26.4771117,208.73,208.66,26.4771117]
[1734557428544,26.4771117,208.71,208.65,6.5035]
[1734557428742,26.4771117,208.72,208.65,32.9806117]
[1734557429044,26.4771117,208.73,208.66,26.4771117]
[1734557429434,26.4771117,208.74,208.66,26.4771117]
[1734557429950,27.3754459,208.73,208.66,26.4771117]
[1734557430153,27.3754459,208.73,208.65,6.5035]
[1734557430357,27.3754459,208.73,208.66,26.4771117]
[1734557430558,26.4771117,208.77,208.69,26.4771117]
[1734557430860,0.89822274,208.76,208.7,26.4771117]
[1734557431229,0.89825932,208.78,208.72,26.4771117]
[1734557431435,26.4771117,208.81,208.73,26.4771117]
[1734557431653,26.4771117,208.81,208.74,26.4771117]
[1734557431854,0.8980478,208.8,208.75,26.4771117]
[1734557432064,27.37519202,208.82,208.75,26.4771117]
[1734557432361,27.37519202,208.82,208.74,26.4771117]
[1734557432676,27.37517446,208.84,208.77,26.4771117]
[1734557432858,26.4771117,208.85,208.78,26.4771117]
[1734557433038,26.4771117,208.86,208.79,26.4771117]
[1734557433236,0.89787738,208.85,208.78,26.4771117]
[1734557433656,26.4771117,208.83,208.75,26.4771117]
[1734557433845,0.89802714,208.82,208.75,26.4771117]
[1734557434037,27.37513884,208.82,208.75,26.4771117]
[1734557434233,26.4771117,208.81,208.73,26.4771117]
[1734557434465,26.4771117,208.81,208.74,26.4771117]
[1734557434844,0.89808813,208.8,208.74,26.4771117]
[1734557435065,0.89808813,208.8,208.73,26.4771117]
[1734557435373,0.89808835,208.8,208.75,26.4771117]
[1734557435669,26.4771117,208.76,208.68,29.5984117]
[1734557435841,26.4771117,208.75,208.68,3.1213]
[1734557436036,26.4771117,208.75,208.68,29.5984117]
[1734557436244,26.4771117,208.71,208.64,26.4771117]
[1734557436563,26.4771117,208.67,208.6,33.0560117]
[1734557436753,26.4771117,208.63,208.56,29.5296117]
[1734557437062,26.4771117,208.63,208.53,6.5789]
[1734557437063,0.89883212,208.62,208.53,6.5789]
[1734557437267,23.776884,208.63,208.45,13.85273792]
[1734557437461,23.776884,208.61,208.45,13.85273792]
[1734557437668,0.89911757,208.6,208.45,13.85273792]
[1734557437850,0.8989655,208.62,208.45,13.85273792]
[1734557438047,23.776884,208.61,208.45,6.5789]
[1734557438239,26.4771117,208.56,208.49,26.4771117]
[1734557438440,26.4771117,208.59,208.51,26.4771117]
[1734557438854,26.4771117,208.58,208.51,26.4771117]
[1734557439180,26.4771117,208.56,208.49,26.4771117]
[1734557439489,0.89909358,208.66,208.55,26.4771117]
[1734557439661,26.4771117,208.62,208.54,26.4771117]
[1734557439857,26.4771117,208.61,208.54,26.4771117]
[1734557440160,26.4771117,208.62,208.49,20.0]
[1734557440369,26.4771117,208.62,208.55,26.4771117]
[1734557441051,26.4771117,208.64,208.56,26.4771117]
[1734557441245,27.37591538,208.66,208.58,26.4771117]
[1734557441446,27.37591538,208.66,208.57,26.4771117]
[1734557441447,26.4771117,208.64,208.57,26.4771117]
[1734557442066,26.4771117,208.65,208.57,26.4771117]
[1734557442247,27.37591014,208.68,208.6,26.4771117]
[1734557442442,26.4771117,208.7,208.62,26.4771117]
[1734557442652,26.4771117,208.7,208.63,26.4771117]
[1734557443342,26.4771117,208.7,208.59,6.6449]
[1734557443343,26.4771117,208.67,208.6,26.4771117]
[1734557443566,26.4771117,208.68,208.61,26.4771117]
[1734557443867,27.37569269,208.67,208.6,26.4771117]
[1734557444504,0.89858099,208.67,208.59,6.6449]
[1734557444710,26.4771117,208.62,208.55,26.4771117]
[1734557444879,27.37605057,208.61,208.53,32.8662117]
[1734557445267,26.4771117,208.61,208.54,26.4771117]
[1734557445470,27.37600447,208.6,208.53,32.8662117]
[1734557445684,26.4771117,208.58,208.53,6.3891]
[1734557445870,0.89904747,208.57,208.5,29.4038117]
[1734557446103,0.89904747,208.57,208.5,45.98820253]
[1734557446408,43.06150253,208.55,208.48,43.06150253]
[1734557446978,0.89917994,208.57,208.46,6.219]
[1734557446979,43.96068648,208.54,208.46,49.28050253]
[1734557447302,43.96068648,208.54,208.41,43.06150253]
[1734557447303,43.06150253,208.48,208.41,43.06150253]
[1734557447469,43.06150253,208.43,208.36,43.06150253]
[1734557447794,0.8996168,208.42,208.29,7.27383792]
[1734557448011,20.0,208.47,208.3,2.89407853]
[1734557448012,43.06150253,208.39,208.3,2.89407853]
[1734557448297,43.06150253,208.39,208.32,43.06150253]
[1734557449176,0.89985218,208.38,208.32,43.06150253]
[1734557449376,0.89985218,208.38,208.27,43.06150253]
[1734557449377,43.06150253,208.34,208.27,43.06150253]
[1734557449682,0.90016983,208.35,208.29,43.06150253]
[1734557450690,0.90016983,208.35,208.24,0.5877612]
[1734557450691,43.96167236,208.35,208.28,43.06150253]
[1734557451007,43.06150253,208.34,208.27,43.06150253]
[1734557451294,0.90014247,208.33,208.27,43.06150253]
[1734557452079,43.06150253,208.37,208.3,43.06150253]
[1734557452285,0.9000038,208.36,208.3,43.06150253]
[1734557452490,0.9000038,208.36,208.29,43.06150253]
[1734557452696,43.06150253,208.36,208.29,43.06150253]
[1734557453001,43.06150253,208.38,208.31,43.06150253]
[1734557453185,43.06150253,208.36,208.29,43.06150253]
[1734557453576,43.06150253,208.36,208.25,23.902374]
[1734557453577,43.06150253,208.34,208.26,43.06150253]
[1734557453776,0.90011651,208.33,208.26,43.06150253]
[1734557453992,43.96161904,208.33,208.26,43.06150253]
[1734557454175,43.06150253,208.35,208.28,43.06150253]
[1734557454914,0.90001798,208.34,208.29,43.06150253]
[1734557455076,43.06150253,208.38,208.31,43.06150253]
[1734557455898,43.06150253,208.38,208.3,43.06150253]
[1734557456089,43.06150253,208.35,208.28,43.06150253]
[1734557456780,43.96151418,208.34,208.27,43.06150253]
[1734557457096,43.06150253,208.35,208.28,43.06150253]
[1734557457302,43.06150253,208.36,208.29,43.06150253]
[1734557457797,43.06150253,208.39,208.32,43.06150253]
[1734557457978,0.8998755,208.38,208.32,43.06150253]
[1734557458178,43.06150253,208.39,208.32,43.06150253]
[1734557458386,0.89984765,208.38,208.32,43.06150253]
[1734557458586,43.96135018,208.38,208.31,43.06150253]
[1734557458897,43.06150253,208.4,208.33,43.06150253]
[1734557459107,43.96139346,208.43,208.35,43.06150253]
[1734557459282,43.06150253,208.45,208.38,43.06150253]
[1734557459473,0.89962538,208.44,208.19,18.09]
[1734557459678,43.06150253,208.25,208.19,6.082]
[1734557459873,43.06150253,208.25,208.12,6.1006]
[1734557460581,43.96213756,208.25,208.16,43.06150253]
[1734557460781,43.06150253,208.25,208.17,43.06150253]
[1734557461008,43.06150253,208.25,208.13,2.8344589]
[1734557461009,43.06150253,208.25,208.16,43.06150253]
[1734557461303,43.06150253,208.25,208.13,45.89596143]
[1734557461482,43.06150253,208.25,208.16,43.06150253]
[1734557461682,43.06150253,208.25,208.17,43.06150253]
[1734557462003,0.90041148,208.3,208.15,3.6]
[1734557462205,0.90021618,208.39,208.15,3.6]
[1734557462714,0.90021618,208.39,208.16,20.0]
[1734557462891,43.06150253,208.28,208.16,20.0]
[1734557463090,43.06150253,208.25,208.18,43.06150253]
[1734557463300,43.06150253,208.25,208.17,43.06150253]
[1734557463679,43.06150253,208.27,208.19,43.06150253]
[1734557463889,13.79493313,208.39,208.21,43.06150253]
[1734557463890,43.06150253,208.28,208.21,43.06150253]
[1734557464101,43.06150253,208.31,208.24,43.64926373]
[1734557464316,43.06150253,208.32,208.24,43.64926373]
[1734557464610,0.90010547,208.31,208.24,0.5877612]
[1734557465289,43.06150253,208.25,208.24,0.5877612]
[1734557465807,43.06150253,208.26,208.24,0.5877612]
[1734557465987,43.06150253,208.29,208.24,0.5877612]
[1734557466389,43.06150253,208.32,208.24,43.64926373]
[1734557466589,43.06150253,208.32,208.25,43.06150253]
[1734557467608,43.06150253,208.33,208.25,43.06150253]
[1734557468707,43.06150253,208.31,208.24,0.5877612]
[1734557468912,43.06150253,208.29,208.24,0.5877612]
[1734557469108,43.06150253,208.27,208.24,0.5877612]
[1734557469407,43.06150253,208.26,208.24,0.5877612]
[1734557469991,43.06150253,208.25,208.24,0.5877612]
[1734557472127,43.06150253,208.26,208.24,0.5877612]
[1734557472615,43.06150253,208.3,208.24,0.5877612]
[1734557472991,43.96171971,208.35,208.27,43.06150253]
[1734557473196,43.06150253,208.38,208.3,43.06150253]
[1734557473496,43.06150253,208.41,208.33,43.06150253]
[1734557473702,43.06150253,208.43,208.35,43.06150253]
[1734557473999,0.89976581,208.47,208.28,1.76648212]
[1734557474000,43.06150253,208.42,208.28,1.76648212]
[1734557474205,43.06150253,208.43,208.36,43.06150253]
[1734557474405,43.06150253,208.41,208.34,43.06150253]
[1734557474602,0.89973059,208.4,208.3,43.06150253]
[1734557474804,43.06150253,208.35,208.28,43.06150253]
[1734557475009,43.06150253,208.31,208.26,6.3183]
[1734557475204,43.06150253,208.34,208.27,0.12549]
[1734557475408,43.06150253,208.32,208.26,6.3183]
[1734557475725,43.06150253,208.35,208.27,43.06150253]
[1734557475903,43.06150253,208.36,208.29,43.06150253]
[1734557476090,43.06150253,208.37,208.3,0.12549]
[1734557476295,43.06150253,208.37,208.3,43.06150253]
[1734557476800,43.06150253,208.36,208.29,43.06150253]
[1734557477116,43.06150253,208.37,208.3,43.06150253]
[1734557477317,43.96147749,208.36,208.29,43.06150253]
[1734557477494,43.96147749,208.36,208.28,43.18699253]
[1734557477696,43.06150253,208.36,208.29,43.06150253]
[1734557477996,43.06150253,208.37,208.3,23.902374]
[1734557478236,43.06150253,208.39,208.32,43.06150253]
[1734557478412,43.06150253,208.39,208.31,43.06150253]
[1734557478994,42.82137903,208.39,208.31,43.06150253]
[1734557479201,42.82137903,208.39,208.32,43.06150253]
[1734557479518,43.06150253,208.37,208.31,0.12549]
[1734557479743,43.06150253,208.35,208.28,43.06150253]
[1734557480293,43.06150253,208.36,208.29,0.12549]
[1734557480490,62.25730653,208.5,208.33,43.18699253]
[1734557480491,0.89992658,208.44,208.33,43.18699253]
[1734557480692,43.06150253,208.45,208.38,43.06150253]
[1734557480994,0.89975526,208.49,208.36,0.12549]
[1734557481194,0.8994372,208.53,208.42,43.06150253]
[1734557481442,43.06150253,208.5,208.4,0.12549]
[1734557481599,43.06150253,208.5,208.43,43.06150253]
[1734557481997,43.06150253,208.48,208.41,43.06150253]
[1734557482210,43.06150253,208.47,208.4,43.06150253]
[1734557482392,43.06150253,208.52,208.45,43.06150253]
[1734557482598,43.06150253,208.54,208.46,43.18699253]
[1734557482809,43.06150253,208.54,208.47,66.83838653]
[1734557483017,43.06150253,208.54,208.47,43.06150253]
[1734557483190,43.06150253,208.55,208.47,43.06150253]
[1734557483395,43.06150253,208.55,208.48,0.12549]
[1734557483595,43.06150253,208.55,208.49,43.06150253]
[1734557483991,43.06150253,208.57,208.5,0.12549]
[1734557484194,43.06150253,208.57,208.51,43.06150253]
[1734557484924,43.06150253,208.65,208.56,43.18699253]
[1734557485105,43.96049334,208.68,208.6,43.06150253]
[1734557485422,43.06150253,208.68,208.62,43.06150253]
[1734557485797,43.06150253,208.68,208.6,43.06150253]
[1734557486001,43.06150253,208.67,208.59,43.18699253]
[1734557486217,43.06150253,208.68,208.61,43.18699253]
[1734557486397,43.06150253,208.68,208.61,0.12549]
[1734557487136,43.06150253,208.66,208.58,43.06150253]
[1734557487310,43.06150253,208.6,208.52,2.5405]
[1734557487626,43.06150253,208.6,208.53,49.06350253]
[1734557487998,43.06150253,208.58,208.5,45.90574148]
[1734557488199,43.06150253,208.6,208.52,43.18699253]
[1734557488398,43.06150253,208.58,208.5,45.90574148]
[1734557489007,43.06150253,208.57,208.51,0.12549]
[1734557489325,43.06150253,208.55,208.5,2.84423895]
[1734557489502,43.06150253,208.53,208.45,45.60070253]
[1734557489917,43.06150253,208.51,208.44,43.06150253]
[1734557490594,43.06150253,208.51,208.44,0.12549]
[1734557490930,43.06150253,208.51,208.45,43.06150253]
[1734557491522,43.06150253,208.49,208.42,43.06150253]
[1734557491723,43.06150253,208.47,208.41,6.3444]
[1734557491936,43.06150253,208.45,208.38,43.06150253]
[1734557492106,43.06150253,208.44,208.36,43.18699253]
[1734557492301,43.06150253,208.44,208.36,43.06150253]
[1734557492709,43.06150253,208.44,208.37,2.84809932]
[1734557493029,43.06150253,208.47,208.38,43.18699253]
[1734557493402,43.06150253,208.47,208.4,43.06150253]
[1734557493611,43.06150253,208.47,208.41,0.12549]
[1734557493922,43.06150253,208.47,208.38,43.06150253]
[1734557494114,43.06150253,208.49,208.41,43.06150253]
[1734557494316,43.06150253,208.51,208.43,43.06150253]
[1734557494920,43.06150253,208.52,208.44,43.06150253]
[1734557495430,43.06150253,208.53,208.45,66.83838653]
[1734557495614,43.06150253,208.55,208.47,43.06150253]
[1734557496003,43.06150253,208.53,208.45,43.06150253]
[1734557497026,43.06150253,208.55,208.48,0.12549]
[1734557497238,43.06150253,208.55,208.49,43.06150253]
[1734557497420,0.8990653,208.62,208.53,43.06150253]
[1734557497421,43.06150253,208.61,208.53,43.06150253]
[1734557497635,43.06150253,208.61,208.54,43.06150253]
[1734557497928,43.06150253,208.62,208.54,43.06150253]
[1734557498104,43.06150253,208.62,208.55,43.06150253]
[1734557498305,43.06150253,208.64,208.56,43.06150253]
[1734557499015,43.06150253,208.62,208.55,43.06150253]
[1734557499215,43.06150253,208.63,208.55,43.06150253]
[1734557499729,43.06150253,208.62,208.55,43.06150253]
[1734557499951,43.06150253,208.59,208.51,43.06150253]
[1734557500109,43.06150253,208.58,208.5,75.78544001]
[1734557500633,43.06150253,208.55,208.5,6.127]
[1734557500932,43.06150253,208.52,208.45,43.06150253]
[1734557501141,43.06150253,208.51,208.44,43.06150253]
[1734557501311,43.06150253,208.53,208.45,43.06150253]
[1734557502036,43.06150253,208.56,208.48,43.18699253]
[1734557502232,43.06150253,208.56,208.46,0.12549]
[1734557502233,43.96053384,208.55,208.47,43.06150253]
[1734557502440,43.06150253,208.56,208.48,43.06150253]
[1734557502640,43.06150253,208.57,208.5,43.18699253]
[1734557504244,43.06150253,208.58,208.5,43.18699253]
[1734557504916,43.06150253,208.58,208.52,0.12549]
[1734557505245,43.06150253,208.6,208.52,43.06150253]
[1734557505443,43.06150253,208.59,208.52,43.06150253]
[1734557506211,43.06150253,208.57,208.48,2.90685996]
[1734557506415,43.06150253,208.52,208.46,20.0]
[1734557506616,43.06150253,208.52,208.44,43.06150253]
[1734557506947,43.06150253,208.52,208.45,0.12549]
[1734557507244,43.06150253,208.52,208.45,2.99751267]
[1734557507542,43.06150253,208.54,208.47,43.06150253]
[1734557507740,43.06150253,208.56,208.49,43.06150253]
[1734557507938,43.06150253,208.56,208.5,43.06150253]
[1734557508275,43.06150253,208.58,208.51,0.12549]
[1734557508548,43.06150253,208.6,208.53,43.06150253]
[1734557508728,43.06150253,208.62,208.54,43.18699253]
[1734557508938,43.06150253,208.63,208.56,0.12549]
[1734557509135,43.06150253,208.65,208.58,43.18699253]
[1734557509344,43.06150253,208.66,208.59,43.06150253]
[1734557509532,43.06150253,208.65,208.58,0.12549]
[1734557509728,43.06150253,208.63,208.56,6.546]
[1734557510829,43.06150253,208.64,208.56,49.60750253]
[1734557511132,43.06150253,208.61,208.56,6.546]
[1734557511442,43.06150253,208.62,208.56,6.546]
[1734557511640,43.06150253,208.63,208.56,49.60750253]
[1734557511840,43.06150253,208.68,208.61,43.06150253]
[1734557512147,43.06150253,208.7,208.63,43.06150253]
[1734557512329,43.06150253,208.71,208.64,43.06150253]
[1734557512525,43.06150253,208.73,208.66,43.06150253]
[1734557512730,33.299222,208.81,208.6,43.06150253]
[1734557512731,43.06150253,208.74,208.67,43.06150253]
[1734557513245,43.06150253,208.75,208.68,0.12549]
[1734557513822,43.06150253,208.74,208.67,43.06150253]
[1734557514027,43.06150253,208.69,208.62,23.776884]
[1734557514243,43.06150253,208.7,208.63,43.06150253]
[1734557514441,43.06150253,208.7,208.63,0.12549]
[1734557515026,43.06150253,208.69,208.63,0.12549]
[1734557515657,43.06150253,208.73,208.66,43.06150253]
[1734557515949,43.06150253,208.77,208.69,43.06150253]
[1734557516155,43.06150253,208.78,208.71,43.06150253]
[1734557516361,0.89811447,208.84,208.71,0.12549]
[1734557516657,43.06150253,208.83,208.76,43.06150253]
[1734557516953,43.06150253,208.82,208.75,43.06150253]
[1734557517246,43.06150253,208.79,208.71,43.18699253]
[1734557517748,11.9693,208.87,208.72,43.06150253]
[1734557517949,43.06150253,208.81,208.75,0.12549]
[1734557518129,43.06150253,208.9,208.7,35.755384]
[1734557518130,43.06150253,208.85,208.78,43.06150253]
[1734557518326,43.06150253,208.86,208.79,43.06150253]
[1734557518554,43.06150253,208.88,208.81,43.06150253]
[1734557518847,0.89778537,208.87,208.81,43.06150253]
[1734557519444,43.06150253,208.88,208.81,43.06150253]
[1734557519643,43.95923807,208.91,208.83,43.06150253]
[1734557519841,43.06150253,208.91,208.83,43.06150253]
[1734557520039,0.8976308,208.95,208.89,43.06150253]
[1734557520242,0.5877612,208.96,208.83,6.6341]
[1734557520243,0.5877612,208.96,208.9,43.06150253]
[1734557520557,43.06150253,208.95,208.88,43.06150253]
[1734557520743,43.64926373,208.96,208.89,43.06150253]
[1734557520949,43.06150253,208.95,208.88,43.06150253]
[1734557521248,43.06150253,208.89,208.83,6.6341]
[1734557521453,43.06150253,208.86,208.79,43.06150253]
[1734557521637,0.5877612,208.96,208.77,6.6161]
[1734557521638,43.06150253,208.84,208.78,2.86375129]
[1734557521834,20.0,208.89,208.78,2.86375129]
[1734557522031,0.89773614,208.91,208.79,0.12549]
[1734557522236,43.06150253,208.86,208.79,43.18699253]
[1734557522457,43.06150253,208.84,208.78,2.86375129]
[1734557522956,43.06150253,208.81,208.74,43.06150253]
[1734557523137,43.06150253,208.76,208.71,6.6161]
[1734557523340,43.06150253,208.75,208.7,2.93845799]
[1734557523538,43.06150253,208.77,208.7,45.99996052]
[1734557523748,43.06150253,208.79,208.72,43.06150253]
[1734557523951,0.89824233,208.82,208.7,2.93845799]
[1734557524139,0.8982102,208.81,208.7,2.93845799]
[1734557524548,12.8708102,208.81,208.69,2.2897]
[1734557524750,20.0,208.78,208.66,6.6161]
[1734557525049,43.06150253,208.71,208.66,6.6161]
[1734557525459,43.95984879,208.77,208.7,43.06150253]
[1734557525661,0.89834626,208.77,208.7,43.06150253]
[1734557525953,0.89816631,208.76,208.66,6.6161]
[1734557526158,0.8982457,208.83,208.66,6.6161]
[1734557526543,0.8982457,208.83,208.71,0.12549]
[1734557526760,6.1098,208.89,208.71,23.902374]
[1734557526761,0.89805952,208.85,208.71,23.902374]
[1734557526947,43.06150253,208.81,208.74,43.06150253]
[1734557527149,43.06150253,208.83,208.75,43.06150253]
[1734557527349,43.95956205,208.85,208.77,43.06150253]
[1734557527534,43.95939717,208.89,208.82,43.06150253]
[1734557527738,8.7425,208.98,208.82,23.902374]
[1734557527739,0.89770837,208.94,208.82,23.902374]
[1734557528638,0.89748724,208.93,208.82,23.902374]
[1734557528833,43.06150253,208.95,208.88,43.06150253]
[1734557529039,43.64926373,208.96,208.89,43.06150253]
[1734557529357,43.06150253,208.93,208.86,43.06150253]
[1734557529557,43.06150253,208.94,208.87,43.06150253]
[1734557529864,43.06150253,208.95,208.87,43.06150253]
[1734557530253,0.5877612,208.96,208.92,66.96387653]
[1734557530567,0.5877612,208.96,208.95,66.96387653]
[1734557530734,0.5877612,208.96,208.94,20.0]
[1734557530938,0.5877612,208.96,208.91,6.127]
[1734557531170,0.5877612,208.96,208.92,23.902374]
[1734557531459,0.5877612,208.96,208.95,43.902374]
[1734557532041,0.5877612,208.96,208.95,86.96387653]
[1734557532240,1.46215279,208.96,208.95,86.96387653]
[1734557532461,43.95837849,209.08,208.95,86.83838653]
[1734557532650,0.87439159,209.07,209.02,43.06150253]
[1734557533247,0.87439159,209.07,209.03,43.06150253]
[1734557533545,0.87439159,209.07,209.02,43.06150253]
[1734557533952,0.87439159,209.07,209.03,43.06150253]
[1734557534158,0.87439159,209.07,209.02,43.06150253]
[1734557534743,0.87439159,209.07,209.03,43.06150253]
[1734557534952,0.87439159,209.07,209.06,43.06150253]
[1734557536340,0.87439159,209.07,209.02,43.06150253]
[1734557536555,0.87439159,209.07,209.03,43.06150253]
[1734557536764,0.87439159,209.07,209.05,43.06150253]
[1734557537563,43.93589412,209.07,209.0,43.06150253]
[1734557537755,43.06150253,209.04,208.97,45.20080253]
[1734557537964,43.06150253,209.03,208.96,43.06150253]
[1734557538159,43.06150253,209.04,208.97,43.06150253]
[1734557538350,0.89707484,209.02,208.96,0.87508203]
[1734557538558,20.0,209.06,208.95,2.84235428]
[1734557538888,35.73775462,208.96,208.88,41.78835462]
[1734557539167,35.73775462,208.96,208.85,2.2488]
[1734557539168,0.89751519,208.95,208.83,6.0506]
[1734557539351,20.0,208.91,208.77,8.2994]
[1734557539544,0.8978716,208.9,208.77,11.14351882]
[1734557540145,35.73775462,208.84,208.77,46.88127344]
[1734557540352,35.73775462,208.87,208.8,35.73775462]
[1734557540568,35.73775462,208.88,208.81,35.73775462]
[1734557540869,36.63552097,208.9,208.83,35.73775462]
[1734557541191,0.89767325,208.96,208.81,0.12549]
[1734557541394,0.89739087,208.99,208.81,0.12549]
[1734557541558,0.89733767,209.04,208.81,4.60120065]
[1734557542068,35.73775462,208.99,208.91,35.73775462]
[1734557542304,35.73775462,209.01,208.93,35.73775462]
[1734557542468,35.73775462,209.02,208.95,35.73775462]
[1734557542648,36.63496683,209.01,208.94,35.73775462]
[1734557542848,35.73775462,209.0,208.92,35.73775462]
[1734557543066,35.73775462,208.98,208.91,35.73775462]
[1734557543264,35.73775462,208.92,208.84,6.1884]
[1734557543546,0.89760825,209.02,208.85,0.12549]
[1734557544053,20.0,208.98,208.87,20.0]
[1734557544258,0.89742051,208.97,208.87,20.0]
[1734557544559,35.73775462,208.96,208.89,35.73775462]
[1734557544757,35.73775462,208.99,208.91,35.73775462]
[1734557544960,35.73775462,208.99,208.92,35.73775462]
[1734557545470,0.89727782,208.98,208.92,35.73775462]
[1734557545651,30.03349043,209.08,208.92,35.73775462]
[1734557545652,36.63512637,208.99,208.92,35.73775462]
[1734557545854,35.73775462,209.01,208.94,35.73775462]
[1734557546163,35.73775462,209.05,208.98,35.73775462]
[1734557546350,0.89729381,209.07,208.95,0.12549]
[1734557546550,0.89696037,209.1,208.95,23.902374]
[1734557546769,0.89696037,209.1,208.98,20.0]
[1734557547175,11.9565,209.09,208.9,2.1644]
[1734557547470,35.73775462,209.02,208.92,0.12549]
[1734557547672,35.73775462,209.03,208.96,35.73775462]
[1734557548142,0.89709893,209.02,208.96,35.73775462]
[1734557548549,35.73775462,209.07,209.0,35.73775462]
[1734557548975,35.73775462,209.1,209.03,35.73775462]
[1734557549473,59.0803823,209.3,209.04,35.73775462]
[1734557549474,35.73775462,209.11,209.04,35.73775462]
[1734557549659,35.73775462,209.14,209.07,35.73775462]
[1734557550056,36.63438448,209.13,209.06,35.73775462]
[1734557550259,35.73775462,209.14,209.07,35.73775462]
[1734557550469,0.89662986,209.16,209.07,35.73775462]
[1734557550470,35.73775462,209.15,209.07,35.73775462]
[1734557550872,36.63434156,209.14,209.07,35.73775462]
[1734557551070,35.73775462,209.14,209.07,35.73775462]
[1734557551997,12.5398612,209.17,209.04,35.73775462]
[1734557551998,35.73775462,209.11,209.04,35.73775462]
[1734557552153,35.73775462,209.09,209.03,22.1181]
[1734557552352,35.73775462,209.1,209.03,57.85585462]
[1734557552670,35.73775462,209.08,209.01,35.73775462]
[1734557552871,35.73775462,209.06,208.99,35.73775462]
[1734557553055,36.63478021,209.05,208.98,35.73775462]
[1734557553256,36.63478021,209.05,208.97,42.10105462]
[1734557553469,35.73775462,208.99,208.92,2.88511877]
[1734557553673,36.63505466,208.98,208.91,42.06825462]
[1734557553865,35.73775462,208.97,208.91,6.3305]
[1734557554173,35.73775462,208.97,208.92,0.87524958]
[1734557554374,35.73775462,208.94,208.92,0.87524958]
[1734557554680,0.897556,208.99,208.92,0.87524958]
[1734557555381,35.73775462,208.98,208.92,0.87524958]
[1734557555587,35.73775462,208.99,208.92,36.6130042]
[1734557555796,0.89730266,208.98,208.92,36.6130042]
[1734557556073,1.8475478,209.08,208.94,35.73775462]
[1734557556074,35.73775462,209.01,208.94,35.73775462]
[1734557556299,35.73775462,209.02,208.95,36.61287853]
[1734557556477,0.89720362,209.01,208.96,0.87508203]
[1734557557216,35.73775462,209.04,208.96,36.61283665]
[1734557557369,36.6349065,209.05,208.98,35.73775462]
[1734557557676,35.73775462,209.03,208.96,36.61283665]
[1734557557885,0.89708306,209.02,208.96,36.61283665]
[1734557558068,35.73775462,209.03,208.96,36.61283665]
[1734557558310,35.73775462,209.04,208.97,35.73775462]
[1734557558507,36.63485243,209.07,208.99,35.73775462]
[1734557558995,36.63485243,209.07,209.0,35.73775462]
[1734557559196,36.63485243,209.07,208.99,35.73775462]
[1734557559398,35.73775462,209.09,209.02,35.73775462]
[1734557559592,35.73775462,209.1,209.02,35.73775462]
[1734557559801,35.73775462,209.1,209.04,35.73775462]
[1734557560095,35.73775462,209.13,209.06,35.73775462]
[1734557560279,35.73775462,209.13,209.0,35.73775462]
[1734557560280,35.73775462,209.14,209.07,35.73775462]
[1734557560995,35.73775462,209.15,209.08,35.73775462]
[1734557561179,0.89665173,209.14,209.08,35.73775462]
[1734557561374,0.5877612,209.17,209.11,35.73775462]
[1734557561697,0.5877612,209.17,209.15,35.73775462]
[1734557562129,0.5877612,209.17,209.12,35.73775462]
[1734557562283,0.5877612,209.17,209.14,35.73775462]
[1734557562818,0.5877612,209.17,209.16,35.73775462]
[1734557563024,0.5877612,209.17,209.15,35.73775462]
[1734557563377,0.5877612,209.17,209.13,35.73775462]
[1734557564080,0.5877612,209.17,209.12,55.73775462]